bitfinex/quotes_SOLUSD_20251130
["timestamp","ask_amount","ask_price","bid_price","bid_amount"]
[1764520567761,6.03107118,139.45,139.4,2.16107118]
[1764520567958,0.71,139.45,139.41,2.16107118]
[1764520568973,0.71,139.46,139.42,2.16107118]
[1764520569169,0.71,139.46,139.41,2.44539432]
[1764520569472,2.16107118,139.45,139.42,7.17257208]
[1764520569668,5.32107118,139.45,139.42,7.17257208]
[1764520569869,0.71,139.44,139.42,7.17257208]
[1764520570272,0.71,139.44,139.41,7.17289382]
[1764520570479,2.87107118,139.44,139.41,7.17289382]
[1764520570670,2.87107118,139.44,139.4,7.17339485]
[1764520570872,0.71,139.43,139.4,7.17339485]
[1764520571373,2.16107118,139.46,139.41,9.09426806]
[1764520571596,3.16,139.45,139.41,11.25533924]
[1764520571980,3.87,139.45,139.41,9.09426806]
[1764520572157,0.71,139.44,139.41,9.09426806]
[1764520573468,0.71,139.44,139.42,7.17257208]
[1764520575660,0.71,139.44,139.41,7.17308657]
[1764520576680,0.71,139.44,139.4,17.93400286]
[1764520576681,0.71,139.44,139.4,25.107604]
[1764520577186,2.87107118,139.44,139.4,7.17360114]
[1764520577582,0.71,139.43,139.4,7.17360114]
[1764520581775,7.88221045,139.43,139.38,1e-08]
[1764520581974,2.16107118,139.39,139.38,1e-08]
[1764520582371,0.71,139.39,139.38,1e-08]
[1764520582890,2.87107118,139.39,139.38,1e-08]
[1764520583893,10.04518697,139.39,139.38,1e-08]
[1764520584402,11.26106557,139.39,139.38,1e-08]
[1764520585187,24.19297979,139.39,139.38,1e-08]
[1764520585392,33.60462862,139.39,139.38,1e-08]
[1764520585771,27.35297979,139.39,139.38,1e-08]
[1764520585968,30.72992957,139.39,139.38,1e-08]
[1764520586168,27.56992957,139.39,139.38,1e-08]
[1764520586367,30.72992957,139.39,139.38,1e-08]
[1764520588894,27.35297979,139.39,139.38,1e-08]
[1764520589084,27.56992957,139.39,139.38,1e-08]
[1764520591393,7.84411579,139.39,139.38,1e-08]
[1764520591698,7.8436496,139.4,139.38,1e-08]
[1764520592501,0.67,139.39,139.38,1e-08]
[1764520592798,10.55059938,139.4,139.38,1e-08]
[1764520593292,0.67,139.39,139.38,1e-08]
[1764520593893,11.22106557,139.39,139.38,1e-08]
[1764520596304,4.04694978,139.39,139.38,1e-08]
[1764520596608,20.35581378,139.41,139.38,1e-08]
[1764520597478,0.67,139.4,139.38,1e-08]
[1764520597877,4.04694978,139.4,139.38,1e-08]
[1764520598300,0.67,139.39,139.38,1e-08]
[1764520599000,4.04694978,139.39,139.38,1e-08]
[1764520601309,0.67,139.39,139.38,1e-08]
[1764520602909,4.04694978,139.39,139.38,1e-08]
[1764520603704,0.67,139.39,139.38,1e-08]
[1764520605516,0.67,139.4,139.38,1e-08]
[1764520608309,3.16,139.41,139.38,1e-08]
[1764520608512,0.67,139.46,139.4,3.37694978]
[1764520608725,0.67,139.45,139.41,3.37694978]
[1764520608896,0.67,139.45,139.4,12.47121784]
[1764520610016,0.67,139.45,139.41,7.17308657]
[1764520610189,4.04694978,139.45,139.41,7.17308657]
[1764520610692,0.67,139.44,139.41,7.17308657]
[1764520611535,3.16,139.46,139.41,7.17308657]
[1764520611697,0.67,139.48,139.44,3.37694978]
[1764520611894,0.67,139.48,139.45,7.17102904]
[1764520617023,0.67,139.48,139.44,7.17154331]
[1764520617623,4.04694978,139.48,139.44,7.17154331]
[1764520617823,0.67,139.48,139.44,7.17154331]
[1764520617999,4.04694978,139.48,139.44,7.17154331]
[1764520619324,0.67,139.48,139.44,7.17154331]
[1764520619525,0.67,139.48,139.44,10.54849309]
[1764520621624,4.03694978,139.5,139.45,3.37694978]
[1764520621999,28.24901163,139.51,139.46,8.80994492]
[1764520622000,0.66,139.49,139.46,8.80994492]
[1764520623014,4.03694978,139.49,139.44,25.1004016]
[1764520623416,0.66,139.48,139.44,25.1004016]
[1764520624428,0.66,139.48,139.44,28.2604016]
[1764520627731,0.66,139.48,139.44,31.63735138]
[1764520629736,0.66,139.48,139.44,28.2604016]
[1764520629942,10.54695049,139.47,139.44,7.17154331]
[1764520630243,10.54695049,139.47,139.43,10.33193026]
[1764520630537,0.66,139.46,139.43,10.33193026]
[1764520631832,0.66,139.46,139.42,19.142517]
[1764520632212,11.20753611,139.46,139.42,7.17257208]
[1764520632633,0.66,139.45,139.41,7.1729546]
[1764520632816,0.66,139.45,139.41,69.8729546]
[1764520633716,0.66,139.45,139.38,76.4111237]
[1764520633717,7.17205766,139.43,139.38,76.4111237]
[1764520634234,0.66,139.42,139.38,76.4111237]
[1764520635329,0.66,139.44,139.39,3.37694978]
[1764520635538,3.37694978,139.45,139.39,3.37694978]
[1764520635539,0.66,139.43,139.39,3.37694978]
[1764520636336,0.66,139.43,139.4,7.17360114]
[1764520638140,0.66,139.44,139.4,33.91754892]
[1764520638347,0.66,139.44,139.4,37.2944987]
[1764520639249,0.66,139.44,139.4,99.9944987]
[1764520640449,0.66,139.44,139.41,3.16]
[1764520640627,0.66,139.44,139.41,73.03262855]
[1764520642046,0.66,139.44,139.41,10.33262855]
[1764520642349,3.37694978,139.42,139.38,1e-08]
[1764520642528,3.37694978,139.41,139.38,62.70000001]
[1764520643026,0.72,139.4,139.38,62.70000001]
[1764520643221,0.72,139.4,139.38,69.87430058]
[1764520645954,2.88045173,139.4,139.38,69.87430058]
[1764520646327,2.88045173,139.4,139.38,1e-08]
[1764520646526,2.85045173,139.39,139.38,1e-08]
[1764520648643,9.33367536,139.41,139.38,1e-08]
[1764520648846,7.86322363,139.41,139.38,1e-08]
[1764520649060,0.69,139.4,139.38,1e-08]
[1764520651269,7.86368615,139.4,139.38,1e-08]
[1764520651562,0.69,139.4,139.38,1e-08]
[1764520655145,0.69,139.42,139.38,64.86045174]
[1764520655355,0.69,139.41,139.38,62.70000001]
[1764520655758,0.69,139.41,139.38,69.87418204]
[1764520658262,0.69,139.41,139.38,73.03418204]
[1764520660246,0.69,139.41,139.38,10.33418204]
[1764520663967,0.69,139.43,139.38,30.43121003]
[1764520664161,0.69,139.43,139.39,2.16045173]
[1764520664461,0.69,139.43,139.39,64.86045173]
[1764520665033,0.69,139.43,139.4,3.16]
[1764520665756,0.69,139.44,139.4,68.02045173]
[1764520665950,0.69,139.44,139.41,7.17308657]
[1764520666144,0.69,139.44,139.41,69.87308657]
[1764520679867,0.69,139.44,139.41,62.7]
[1764520681276,2.85045173,139.44,139.41,62.7]
[1764520681771,0.69,139.44,139.41,62.7]
[1764520684876,0.69,139.44,139.41,69.872942]
[1764520686977,3.16,139.47,139.41,69.872942]
[1764520687278,0.71,139.46,139.42,5.32045173]
[1764520688157,0.71,139.46,139.43,7.17205766]
[1764520692077,0.71,139.46,139.43,69.87205766]
[1764520692464,17.018864,139.48,139.44,2.16045173]
[1764520692657,0.71,139.48,139.45,2.16045173]
[1764520692978,0.71,139.48,139.44,68.02045173]
[1764520693281,2.87045173,139.48,139.44,65.86]
[1764520693784,0.71,139.47,139.45,7.17102904]
[1764520694590,0.71,139.49,139.45,7.17102904]
[1764520694797,0.71,139.48,139.45,7.17102904]
[1764520695171,0.71,139.48,139.45,9.33148077]
[1764520696177,0.71,139.48,139.45,7.17102904]
[1764520699886,0.71,139.48,139.45,69.87102904]
[1764520702392,0.71,139.48,139.45,72.03148077]
[1764520702693,0.71,139.48,139.45,69.87102904]
[1764520703794,0.71,139.48,139.45,72.03148077]
[1764520706395,0.71,139.48,139.45,73.2425886]
[1764520709879,0.71,139.48,139.45,69.87102904]
[1764520712396,0.71,139.48,139.45,73.2425886]
[1764520717206,0.71,139.48,139.45,69.87102904]
[1764520724518,0.71,139.48,139.44,7.17133777]
[1764520724519,3.37155956,139.47,139.44,7.17133777]
[1764520724911,0.65,139.46,139.44,7.17133777]
[1764520725416,0.65,139.46,139.42,7.17257208]
[1764520726918,4.02155956,139.46,139.42,7.17257208]
[1764520727821,0.65,139.45,139.42,7.17257208]
[1764520728006,0.65,139.45,139.42,69.87257208]
[1764520728707,0.65,139.45,139.42,7.17257208]
[1764520728907,4.02155956,139.45,139.42,7.17257208]
[1764520729320,0.65,139.44,139.42,7.17257208]
[1764520729999,7.82069421,139.46,139.42,7.17257208]
[1764520730324,0.65,139.45,139.42,7.17257208]
[1764520732021,13.7017543,139.47,139.42,7.17257208]
[1764520732324,4.02155956,139.46,139.42,7.17257208]
[1764520732527,4.02155956,139.46,139.42,62.7]
[1764520732711,0.65,139.45,139.42,62.7]
[1764520733622,0.65,139.45,139.42,69.87218274]
[1764520735323,7.82103773,139.45,139.42,62.7]
[1764520735715,0.69,139.44,139.42,62.7]
[1764520736829,0.69,139.44,139.42,69.87253271]
[1764520740129,0.69,139.44,139.42,73.24409227]
[1764520740947,7.86074403,139.46,139.42,73.24409227]
[1764520741139,0.69,139.47,139.43,6.53155956]
[1764520741316,0.69,139.46,139.43,6.53155956]
[1764520741944,0.69,139.46,139.43,3.16]
[1764520742113,0.69,139.46,139.43,10.33156672]
[1764520744442,0.69,139.46,139.43,73.03156672]
[1764520745742,0.69,139.46,139.43,76.40312628]
[1764520747742,0.69,139.46,139.43,73.03156672]
[1764520757464,7.1704769,139.48,139.44,0.28432314]
[1764520757667,0.69,139.49,139.46,3.37155956]
[1764520758168,0.69,139.5,139.47,6.53155956]
[1764520759661,0.69,139.5,139.47,13.70113064]
[1764520759975,0.69,139.5,139.47,3.16]
[1764520760176,0.69,139.5,139.47,6.53155956]
[1764520761379,0.69,139.5,139.47,13.70143755]
[1764520763582,0.69,139.5,139.48,3.37155956]
[1764520765583,7.16774771,139.52,139.49,6.53155956]
[1764520765887,0.67,139.51,139.5,3.37155956]
[1764520766761,0.67,139.51,139.5,66.07155956]
[1764520766961,0.1,139.53,139.5,3.37155956]
[1764520767169,0.77,139.53,139.51,3.37155956]
[1764520768379,0.77,139.53,139.51,2.15571673]
[1764520768689,0.77,139.53,139.52,2.15571673]
[1764520768690,0.1,139.53,139.52,2.15571673]
[1764520768868,0.1,139.53,139.52,11.24998479]
[1764520769261,0.1,139.53,139.52,18.41741598]
[1764520770564,0.1,139.53,139.52,21.28757706]
[1764520771476,0.1,139.53,139.52,18.41741598]
[1764520773086,0.1,139.53,139.52,81.11741598]
[1764520776396,0.1,139.53,139.52,78.96169925]
[1764520776587,0.1,139.53,139.52,81.11741598]
[1764520777099,0.1,139.56,139.55,62.5]
[1764520777272,0.1,139.56,139.55,67.81571673]
[1764520778712,0.1,139.56,139.55,84.07587515]
[1764520779081,0.1,139.57,139.55,84.07587515]
[1764520779276,0.1,139.57,139.56,2.15571673]
[1764520779999,0.1,139.59,139.57,11.24998479]
[1764520780208,0.1,139.59,139.57,14.40998479]
[1764520780685,0.1,139.59,139.57,84.07484829]
[1764520782636,0.1,139.59,139.58,13.40570152]
[1764520783627,0.1,139.59,139.58,20.57005171]
[1764520784011,0.1,139.59,139.58,18.41433498]
[1764520786005,0.1,139.6,139.59,69.56383695]
[1764520786210,0.1,139.6,139.59,72.72383695]
[1764520787006,0.1,139.6,139.59,74.87955368]
[1764520787333,0.1,139.6,139.59,83.97382174]
[1764520791358,0.1,139.62,139.61,18.41279547]
[1764520791559,0.1,139.62,139.61,83.87279547]
[1764520799068,0.7,139.65,139.61,137.59387561]
[1764520799247,0.7,139.65,139.64,2.44003987]
[1764520799446,0.7,139.65,139.64,76.70998479]
[1764520800151,0.7,139.65,139.64,83.87125663]
[1764520800669,3.19621746,139.66,139.65,9.09426806]
[1764520800851,3.89621746,139.66,139.65,11.24998479]
[1764520801873,3.89621746,139.66,139.65,18.41074383]
[1764520803781,3.89621746,139.66,139.65,80.71074383]
[1764520806577,3.19621746,139.66,139.65,80.71074383]
[1764520807178,1e-08,139.66,139.65,82.86646056]
[1764520807562,1e-08,139.66,139.65,104.36798358]
[1764520808657,0.7,139.7,139.68,8.80994492]
[1764520808869,0.7,139.7,139.69,14.40998479]
[1764520809980,0.7,139.7,139.69,21.56869335]
[1764520810163,0.7,139.7,139.69,83.86869334]
[1764520810361,2.15571673,139.75,139.7,9.09426806]
[1764520810562,0.7,139.71,139.7,71.39426805]
[1764520811369,0.7,139.71,139.7,80.70818091]
[1764520811684,0.7,139.72,139.7,98.60367124]
[1764520811859,0.7,139.75,139.72,9.09426806]
[1764520812059,0.1,139.76,139.74,11.24998479]
[1764520812286,0.1,139.76,139.71,16.308864]
[1764520812287,0.8,139.76,139.75,14.40998479]
[1764520813163,0.1,139.76,139.75,14.40998479]
[1764520813372,0.1,139.76,139.75,19.40990312]
[1764520813699,0.1,139.76,139.75,21.56561985]
[1764520814486,0.7,139.8,139.79,25.40313206]
[1764520814680,0.7,139.85,139.8,0.28432314]
[1764520814862,0.7,139.85,139.81,3.16]
[1764520815486,10.00632038,139.85,139.81,3.16]
[1764520815691,0.7,139.85,139.81,12.46823158]
[1764520815869,0.7,139.84,139.81,12.46823158]
[1764520816392,0.7,139.84,139.81,5.31571673]
[1764520816562,0.7,139.84,139.81,12.46809335]
[1764520818072,0.7,139.84,139.79,13.373864]
[1764520818378,25.72869271,139.84,139.77,3.16]
[1764520818786,0.7,139.83,139.77,3.16]
[1764520819891,7.15205263,139.82,139.77,3.16]
[1764520820390,0.7,139.81,139.77,10.31441779]
[1764520821096,0.7,139.81,139.77,12.47013452]
[1764520821288,0.7,139.81,139.79,2.15571673]
[1764520821593,0.7,139.81,139.8,5.31571673]
[1764520821804,0.7,139.81,139.8,12.46879255]
[1764520822008,0.7,139.81,139.8,12.75311569]
[1764520822680,0.7,139.81,139.79,7.15342405]
[1764520822881,0.7,139.81,139.79,9.30914078]
[1764520824674,0.7,139.81,139.79,7.15342405]
[1764520825882,0.7,139.81,139.79,9.30914078]
[1764520827000,17.87563591,139.86,139.8,2.15571673]
[1764520827205,0.66,139.85,139.83,2.15571673]
[1764520827705,0.66,139.85,139.82,2.15571673]
[1764520828205,0.66,139.85,139.82,9.30736213]
[1764520828410,0.66,139.85,139.82,10.50504878]
[1764520828584,0.66,139.85,139.82,7.1516454]
[1764520828780,0.66,139.85,139.82,10.50504878]
[1764520829298,0.66,139.84,139.82,10.50504878]
[1764520830302,0.66,139.84,139.82,7.1516454]
[1764520830495,3.35340338,139.83,139.77,3.35340338]
[1764520830698,11.16454185,139.84,139.78,6.51340338]
[1764520830902,4.01340338,139.83,139.78,3.16]
[1764520831090,4.01340338,139.83,139.78,19.468864]
[1764520831403,0.66,139.82,139.78,22.82226738]
[1764520831990,0.66,139.82,139.78,19.468864]
[1764520832194,0.66,139.82,139.78,29.9762394]
[1764520834508,0.66,139.82,139.78,47.86148764]
[1764520835789,0.66,139.82,139.78,44.50808426]
[1764520835995,0.66,139.82,139.78,47.86148764]
[1764520836309,0.66,139.82,139.79,3.35340338]
[1764520836696,0.66,139.82,139.8,7.15307582]
[1764520840222,0.66,139.84,139.83,3.35340338]
[1764520840592,0.66,139.84,139.83,10.50494453]
[1764520840994,0.66,139.84,139.83,13.66494453]
[1764520841396,0.66,139.86,139.83,13.66494453]
[1764520841714,0.66,139.86,139.84,3.35340338]
[1764520842315,0.66,139.86,139.83,10.31154115]
[1764520842514,0.66,139.86,139.83,7.15154115]
[1764520842719,0.66,139.86,139.82,3.35340338]
[1764520842720,4.01340338,139.86,139.82,7.15194396]
[1764520843110,0.66,139.85,139.82,7.15194396]
[1764520843646,4.01340338,139.85,139.81,7.1525259]
[1764520843999,0.66,139.84,139.81,7.1525259]
[1764520844198,0.66,139.84,139.8,10.31287022]
[1764520844834,11.16451562,139.84,139.8,10.31287022]
[1764520845015,11.16451562,139.84,139.8,7.15287022]
[1764520845211,0.66,139.83,139.8,7.15287022]
[1764520845909,0.66,139.83,139.79,7.15358752]
[1764520846519,11.16539944,139.83,139.79,7.15358752]
[1764520846903,0.66,139.82,139.79,7.15358752]
[1764520848824,3.35340338,139.81,139.77,7.15421003]
[1764520849027,11.16582952,139.82,139.77,7.15421003]
[1764520849221,0.66,139.81,139.77,7.15421003]
[1764520850127,7.81283073,139.81,139.77,10.50761341]
[1764520850636,0.66,139.8,139.77,3.35340338]
[1764520851617,0.66,139.8,139.77,10.50799384]
[1764520852836,0.66,139.8,139.79,3.35340338]
[1764520853626,0.66,139.8,139.79,7.15358752]
[1764520856124,0.66,139.84,139.79,10.5069909]
[1764520856330,0.66,139.83,139.8,3.35340338]
[1764520857248,0.66,139.83,139.78,7.43821641]
[1764520857550,0.66,139.83,139.79,3.16]
[1764520857551,4.01340338,139.83,139.79,3.16]
[1764520857721,0.66,139.83,139.79,3.16]
[1764520857922,0.66,139.82,139.79,3.16]
[1764520858756,0.66,139.82,139.8,3.35340338]
[1764520859044,0.66,139.82,139.79,10.31343553]
[1764520859255,0.66,139.82,139.81,3.35340338]
[1764520860137,0.66,139.82,139.8,3.35340338]
[1764520860336,0.66,139.84,139.81,3.35340338]
[1764520860534,7.15072292,139.85,139.8,7.15306234]
[1764520860535,7.15072292,139.85,139.83,3.35340338]
[1764520860845,7.81072292,139.85,139.82,6.51340338]
[1764520861041,0.66,139.85,139.82,6.51340338]
[1764520861231,0.66,139.84,139.82,6.51340338]
[1764520862639,0.66,139.84,139.82,13.6654003]
[1764520866152,0.66,139.84,139.82,76.3654003]
[1764520866530,16.308864,139.86,139.82,13.6654003]
[1764520866735,0.66,139.84,139.83,3.35340338]
[1764520867654,0.66,139.84,139.83,10.50494453]
[1764520868754,7.80964659,139.87,139.83,10.50494453]
[1764520868953,0.66,139.86,139.84,3.35340338]
[1764520869452,0.66,139.86,139.83,3.35340338]
[1764520870055,0.66,139.86,139.84,3.35340338]
[1764520871070,0.66,139.86,139.83,3.35340338]
[1764520873749,0.66,139.86,139.83,10.50446749]
[1764520874769,0.66,139.86,139.84,3.35340338]
[1764520875262,0.66,139.86,139.84,66.05340338]
[1764520875645,23.45805735,139.88,139.84,66.05340338]
[1764520875646,0.66,139.88,139.85,3.35340338]
[1764520875852,0.66,139.88,139.85,10.5034116]
[1764520876058,0.66,139.88,139.85,13.6634116]
[1764520876754,0.66,139.88,139.85,10.31000822]
[1764520879466,0.66,139.88,139.85,13.6634116]
[1764520880359,0.66,139.88,139.85,10.31000822]
[1764520880557,0.66,139.88,139.85,13.6634116]
[1764520881064,0.66,139.88,139.85,76.3634116]
[1764520882153,0.66,139.88,139.86,3.35340338]
[1764520882353,0.66,139.9,139.87,3.35340338]
[1764520882555,17.86675761,139.93,139.89,3.35340338]
[1764520882861,0.71,139.92,139.89,3.35340338]
[1764520883251,7.85698039,139.92,139.88,3.16]
[1764520883452,7.85698039,139.92,139.89,3.35340338]
[1764520883453,0.71,139.92,139.89,3.35340338]
[1764520883652,0.71,139.91,139.89,3.35340338]
[1764520884067,0.71,139.91,139.88,6.51340338]
[1764520884264,0.71,139.91,139.89,7.1484738]
[1764520885273,0.71,139.91,139.88,7.14880918]
[1764520886865,0.71,139.91,139.89,3.35340338]
[1764520887877,0.71,139.91,139.88,7.14880918]
[1764520888076,0.71,139.91,139.89,7.14804705]
[1764520889479,0.71,139.91,139.85,7.15010549]
[1764520889480,3.35340338,139.9,139.85,7.15010549]
[1764520889669,14.37126161,139.91,139.86,3.35340338]
[1764520889860,0.67,139.9,139.87,3.35340338]
[1764520890380,0.67,139.9,139.86,5.30491992]
[1764520891280,0.67,139.9,139.86,12.45467735]
[1764520891784,9.96291699,139.9,139.86,3.16]
[1764520892196,0.67,139.89,139.85,9.29540924]
[1764520892656,0.67,139.89,139.86,2.14491992]
[1764520893282,0.67,139.89,139.86,9.29490322]
[1764520893590,0.67,139.89,139.84,3.16]
[1764520893591,9.96353319,139.89,139.84,5.30491992]
[1764520893988,0.67,139.88,139.84,5.30491992]
[1764520894176,2.81491992,139.88,139.82,9.29678145]
[1764520894372,5.97491992,139.88,139.81,7.15249645]
[1764520894686,2.14491992,139.86,139.81,68.00491992]
[1764520894870,2.14491992,139.86,139.81,5.30491992]
[1764520895184,9.29594966,139.84,139.79,2.14491992]
[1764520895387,9.29594966,139.84,139.79,9.29848597]
[1764520895576,0.67,139.83,139.79,9.29848597]
[1764520896582,0.67,139.83,139.79,7.15356605]
[1764520896787,0.67,139.83,139.8,2.14491992]
[1764520897285,0.67,139.83,139.8,9.2977821]
[1764520897668,0.67,139.83,139.8,7.15286218]
[1764520897865,0.67,139.83,139.8,9.2977821]
[1764520898297,0.67,139.83,139.8,7.15286218]
[1764520899594,0.67,139.83,139.78,10.31404366]
[1764520899797,2.14491992,139.82,139.78,10.31404366]
[1764520899997,9.96649984,139.83,139.78,10.31404366]
[1764520900294,0.67,139.82,139.78,12.45896358]
[1764520903493,0.67,139.82,139.78,10.31404366]
[1764520904200,0.67,139.82,139.78,12.45896358]
[1764520904500,0.67,139.84,139.81,2.14491992]
[1764520904684,0.67,139.84,139.82,2.14491992]
[1764520904884,0.67,139.84,139.81,2.14491992]
[1764520905679,0.67,139.84,139.81,9.29700818]
[1764520906304,0.67,139.84,139.81,7.15208826]
[1764520907202,0.67,139.84,139.81,9.29700818]
[1764520907894,0.67,139.86,139.82,2.14491992]
[1764520908093,0.67,139.86,139.83,2.14491992]
[1764520908799,0.67,139.86,139.83,9.2959815]
[1764520909478,0.67,139.86,139.83,7.15106158]
[1764520911006,2.81491992,139.86,139.83,7.15106158]
[1764520911406,0.67,139.85,139.83,7.15106158]
[1764520913909,0.67,139.85,139.83,62.7]
[1764520914603,0.67,139.85,139.82,7.15183151]
[1764520916112,2.14491992,139.84,139.81,65.86]
[1764520916297,2.14491992,139.83,139.81,62.7]
[1764520916488,2.14491992,139.83,139.78,5.30491992]
[1764520916807,0.66,139.82,139.78,68.00491992]
[1764520917492,0.66,139.82,139.78,75.15883115]
[1764520918815,9.95709177,139.82,139.78,10.31391123]
[1764520919318,0.66,139.81,139.78,10.31391123]
[1764520923420,0.66,139.81,139.78,12.45883115]
[1764520926523,0.66,139.82,139.8,2.14491992]
[1764520927338,0.66,139.82,139.8,9.29767044]
[1764520928841,0.66,139.82,139.79,9.29850744]
[1764520931541,0.66,139.82,139.79,71.99850744]
[1764520931705,0.66,139.84,139.8,5.30491992]
[1764520931901,0.66,139.84,139.81,9.2972148]
[1764520933916,0.66,139.86,139.82,2.14491992]
[1764520934122,0.66,139.86,139.82,5.30491992]
[1764520935032,2.14491992,139.85,139.82,3.16]
[1764520935408,0.66,139.84,139.82,3.16]
[1764520935817,0.66,139.84,139.82,10.3120233]
[1764520936024,0.66,139.84,139.82,7.1520233]
[1764520936536,0.66,139.84,139.81,7.15252152]
[1764520936725,2.80491992,139.84,139.81,7.15252152]
[1764520937141,0.66,139.83,139.81,7.15252152]
[1764520937441,0.66,139.83,139.81,69.85252152]
[1764520939681,2.80491992,139.83,139.8,62.7]
[1764520939855,0.66,139.82,139.8,62.7]
[1764520940878,0.66,139.82,139.8,69.85290945]
[1764520942590,0.66,139.82,139.8,71.99782937]
[1764520944396,0.66,139.82,139.8,69.85290945]
[1764520948384,0.66,139.82,139.8,62.7]
[1764520948770,2.80491992,139.82,139.8,62.7]
[1764520949154,2.80491992,139.82,139.77,25.04005417]
[1764520949155,2.86491992,139.81,139.77,25.04005417]
[1764520949582,0.72,139.8,139.77,25.04005417]
[1764520949781,0.72,139.8,139.77,27.18497409]
[1764520950081,0.72,139.8,139.77,27.85497409]
[1764520950286,0.72,139.8,139.77,27.18497409]
[1764520950481,0.72,139.8,139.77,7.82417696]
[1764520950785,0.72,139.8,139.77,9.29909688]
[1764520951490,0.72,139.8,139.77,7.15417696]
[1764520952967,7.87314838,139.8,139.76,75.65130503]
[1764520953391,0.72,139.79,139.76,72.29502145]
[1764520953596,0.72,139.79,139.76,75.65130503]
[1764520953791,0.72,139.79,139.76,13.67130503]
[1764520954171,0.72,139.79,139.76,75.65130503]
[1764520955297,0.72,139.79,139.76,72.29502145]
[1764520955593,0.72,139.79,139.76,75.65130503]
[1764520958298,0.72,139.79,139.75,0.95432314]
[1764520958299,7.87370373,139.79,139.75,7.15562226]
[1764520958506,7.87370373,139.79,139.73,26.70094567]
[1764520958507,3.35628358,139.78,139.73,80.3985969]
[1764520958674,4.07628358,139.78,139.73,7.90599731]
[1764520958875,0.72,139.77,139.72,7.18628358]
[1764520959282,0.72,139.77,139.72,3.83]
[1764520959494,0.72,139.77,139.73,3.35628358]
[1764520959690,0.72,139.77,139.72,3.83]
[1764520959884,7.87506805,139.77,139.72,14.34339768]
[1764520960399,0.72,139.76,139.72,14.34339768]
[1764520960589,0.72,139.76,139.73,3.35628358]
[1764520960987,0.72,139.76,139.74,3.35628358]
[1764520961286,7.874309,139.78,139.74,3.35628358]
[1764520961480,0.72,139.77,139.74,3.35628358]
[1764520961685,0.72,139.78,139.75,4.02628358]
[1764520962100,0.72,139.78,139.75,3.35628358]
[1764520964402,0.72,139.78,139.75,64.13628358]
[1764520965902,7.15378743,139.79,139.76,3.35628358]
[1764520966103,7.87378743,139.79,139.76,64.13628358]
[1764520966289,7.87378743,139.79,139.77,3.35628358]
[1764520966483,7.87378743,139.79,139.76,64.13628358]
[1764520967101,7.15307582,139.8,139.76,64.13628358]
[1764520967285,0.72,139.79,139.76,64.13628358]
[1764520967992,7.87307582,139.8,139.76,64.80628358]
[1764520968397,0.72,139.79,139.76,64.80628358]
[1764520969090,0.72,139.79,139.76,64.13628358]
[1764520969697,0.72,139.79,139.76,64.80628358]
[1764520970298,0.72,139.79,139.76,71.96126931]
[1764520970481,0.72,139.79,139.76,10.51126931]
[1764520973204,7.87359925,139.79,139.76,10.51126931]
[1764520973603,0.72,139.78,139.76,3.35628358]
[1764520974607,7.15359925,139.79,139.76,3.35628358]
[1764520974803,7.87359925,139.79,139.76,4.02628358]
[1764520975000,7.87359925,139.79,139.76,3.35628358]
[1764520975507,7.15359925,139.79,139.76,3.35628358]
[1764520975704,0.67,139.78,139.76,3.35628358]
[1764520976405,0.67,139.78,139.76,64.13628358]
[1764520978394,0.67,139.8,139.76,71.98091149]
[1764520978613,0.67,139.79,139.77,3.35628358]
[1764520978988,0.67,139.79,139.77,10.51088032]
[1764520980400,10.3129428,139.81,139.78,3.35628358]
[1764520980401,7.8229428,139.81,139.78,3.35628358]
[1764520981116,0.67,139.8,139.78,3.35628358]
[1764520981614,0.67,139.8,139.78,10.51036037]